Cogmind - Beta 16 --- EXPLORER MODE // 2025.11.27 @ 14:50:59 Player: K.K.Y. Result: Destroyed by OT-KPY(R) with Subdweller Machine Gun Performance ------------- Evolutions (0) 0 Regions Visited (3) 600 Robots Destroyed (28) 140 Value Destroyed (680) 680 Prototype IDs (1) 20 Alien Tech Used (0) 0 Bonus (0) 0 TOTAL SCORE: 1440 Bonus ------- None Cogmind --------- Core Integrity 0/250 Matter 270/300 Energy 96/100 System Corruption 0% Temperature Cool (6) Movement Treading (160) Location -10/Subcaves Parts ------- > --- POWER (1) -------- (None) > --- PROPULSION (2) --- Spiked Treads Improved Flight Unit > --- UTILITY (3) ------ Scrap Suit Small Storage Unit > --- WEAPON (2) ------- Slug Cannon Ripper > --- INVENTORY (8) ---- Cooling System Machine Analyzer Scrap Shield Recalibrator Barrage Gun Mining Laser Hammer Peak State ------------ > --- POWER ------------ Light Nuclear Core > --- PROPULSION ------- Spiked Treads Improved Flight Unit > --- UTILITY ---------- Scrap Suit Small Storage Unit > --- WEAPON ----------- Spread Laser Makeshift Hammer > --- INVENTORY -------- Cooling System Machine Analyzer Recalibrator Light Assault Rifle Light Assault Rifle Mining Laser Hammer [Rating: 24] Favorites ----------- Power Light Nuclear Core Engine Light Ion Engine Power Core Light Nuclear Core Propulsion Improved Flight Unit Treads Spiked Treads Flight Unit Improved Flight Unit Utility Small Storage Unit Device Scrap Suit Storage Small Storage Unit Protection Light Armor Plating Weapon Spread Laser Energy Gun Spread Laser Ballistic Gun Light Assault Rifle Ballistic Cannon Slug Cannon Impact Weapon Makeshift Hammer Slashing Weapon Ripper Build | -11 -10 -10 -10 ------- Run | Yrd Mat Min Sub Slots Evolved 1 | . 1 . . Power . | . . . . Propulsion . | . . . . Utility 1 | . 1 . . Weapon . | . . . . Parts Attached 22 | 3 12 4 3 Power 4 | . 2 2 . Engine 3 | . 2 1 . Core 1 | . . 1 . Reactor . | . . . . Propulsion 5 | . 4 . 1 Treads 3 | . 2 . 1 Leg . | . . . . Wheel . | . . . . Hover . | . . . . Flight 2 | . 2 . . Utility 6 | 1 4 1 . Device 3 | 1 1 1 . Storage 2 | . 2 . . Processor . | . . . . Hackware . | . . . . Protection 1 | . 1 . . Artifact . | . . . . Weapon 7 | 2 2 1 2 Energy Gun 1 | . 1 . . Energy Cannon . | . . . . Ballistic Gun 4 | 2 1 1 . Ballistic Cannon 1 | . . . 1 Launcher . | . . . . Special Weapon . | . . . . Impact Weapon . | . . . . Slashing Weapon 1 | . . . 1 Piercing Weapon . | . . . . Special Melee Weapon . | . . . . Unidentified Prototypes 1 | . 1 . . Parts Lost 4 | . . 2 2 Power 2 | . . 1 1 Propulsion 1 | . . 1 . Utility . | . . . . Weapon 1 | . . . 1 Highest Loss Streak 1 | . . 1 1 To Critical Strikes . | . . . . Average Backups 7 | 3 4 7 7 Power . | . . . . Propulsion . | 1 . . . Utility 2 | 1 1 3 3 Weapon 4 | . 2 4 4 Tool/Special . | . . . . Unused Backups 10 | . . . 10 Power . | . . . . Propulsion . | . . . . Utility 5 | . . . 5 Weapon 5 | . . . 5 Tool/Special . | . . . . Average Slot Usage (%) 79 | . 84 73 79 Engine 3 | . 11 10 . Core 6 | . . 1 8 Treads 7 | . 10 . 8 Flight 13 | . 14 23 12 Device 12 | . 13 12 12 Storage 11 | . 11 12 12 Energy Gun 6 | . . . 8 Ballistic Gun 5 | . 15 12 1 Impact Weapon 2 | . . . 3 Slashing Weapon 5 | . . . 7 Peak Build Rating 24 | 3 12 19 24 Average Rating 18 | 1 9 15 22 On Entrance 7 | . 3 11 17 Avg Prop Armor Cover (%) 1 | . . . 1 Naked Turns . | . . . . Heaviest Build 23 | 5 23 15 20 Greatest Support 40 | 3 40 10 20 Greatest Overweight (x) 4 | 1 4 2 3 Average Overweight (x) . | . . . . Largest Inventory Capacity 10 | 5 10 8 8 Average Capacity 8 | 5 8 8 8 Most Carried 9 | 5 9 8 8 Average Carried 7 | 4 4 7 7 Final Capacity 8 | 5 8 8 8 Final Carried 8 | 5 8 8 8 Scrap Suit Usage (%) 75 | . . 64 100 Class Distribution -------------------- 75% | Hacker-Scrapper 24% | Hacker-Mutant Dominant Class ---------------- Hacker-Mutant | -10/Materials Hacker-Scrapper | -10/Mines Hacker-Scrapper | -10/Subcaves Resources | -11 -10 -10 -10 ----------- Run | Yrd Mat Min Sub Matter Collected 617 | 230 268 79 40 Remotely . | . . . . Salvage Created 748 | . 362 212 174 Parts 38 | . 19 9 10 Haulers Intercepted 1 | . 1 . . Recyclers Shooed . | . . . . Parts Field Recycled . | . . . . Retrieved Matter . | . . . . Parts Self-Destructed . | . . . . Prevented . | . . . . Parts Restored . | . . . . Kills | -11 -10 -10 -10 ------- Run | Yrd Mat Min Sub Combat Hostiles Destroyed 21 | . 7 6 8 Melee 1 | . . . 1 Guns 20 | . 7 6 7 Classes Destroyed 8 | . 6 . 2 Hauler 1 | . 1 . . Recycler 1 | . 1 . . Mechanic 1 | . 1 . . Turret 2 | . . . 2 Watcher 2 | . 2 . . Swarmer 9 | . 4 2 3 Grunt 7 | . 3 4 . Subdweller 5 | . . . 5 Best Kill Streak 5 | . 3 2 5 Combat Bots Only 3 | . 3 2 3 Max Kills in Single Turn 2 | . 2 1 1 Gunslinging . | . . . . Exploded . | . . . . Melee 1 | . . . 1 Uniques/NPCs Destroyed . | . . . . Combat | -11 -10 -10 -10 -------- Run | Yrd Mat Min Sub Hostile Shots Fired 154 | . 37 37 80 Missed 54 | . 13 10 31 Hits 100 | . 24 27 49 Projectile 100 | . 24 27 49 AOE 6 | . . . 6 Critical Strikes 1 | . . . 1 Damage Taken 1121 | . 166 234 721 Core 251 | . 25 66 160 Absorbed by Shields . | . . . . Ignored by Resistances 611 | . 112 146 353 Core Remaining (%) 100 | 100 . . . Volleys Fired 127 | . 57 37 33 Largest 2 | . 2 1 1 Hottest 65 | . 40 20 65 Shots Fired 145 | . 75 37 33 Gun 140 | . 75 37 28 Cannon 5 | . . . 5 Launcher . | . . . . Special . | . . . . Kinetic 118 | . 75 37 6 Thermal 27 | . . . 27 Explosive . | . . . . Electromagnetic . | . . . . Robot Hit Streak 54 | . 10 20 54 Robot Miss Streak 3 | . 1 1 3 Penetration Max . | . . . . Secondary Targets . | . . . . Shots Hit Robots 129 | . 59 35 35 Core Hits 89 | . 26 15 48 Critical Kills . | . . . . Critical Parts Destroyed 2 | . 2 . . Critical Strikes 5 | . 2 . 3 Destroy 5 | . 2 . 3 Melee Attacks 17 | . . . 17 Impact 13 | . . . 13 Slashing 4 | . . . 4 Piercing . | . . . . Sneak Attacks . | . . . . Combat Hostiles . | . . . . Follow-up Attacks . | . . . . Damage Inflicted 1692 | . 615 277 800 Guns 1387 | . 615 277 495 Cannons 174 | . . . 174 Explosions . | . . . . Melee 131 | . . . 131 Ramming . | . . . . Kinetic 1075 | . 615 277 183 Thermal 486 | . . . 486 Explosive . | . . . . Electromagnetic . | . . . . Impact 92 | . . . 92 Slashing 39 | . . . 39 Piercing . | . . . . Highest Corruption . | . . . . Average Corruption . | . . . . Corruption Purged . | . . . . Corruption Blocked . | . . . . Overload Shots . | . . . . Overflow Damage . | . . . . Projectiles . | . . . . Explosions . | . . . . Melee . | . . . . Knockbacks 3 | . . . 3 Impact 1 | . . . 1 Kinetic 2 | . . . 2 Secondary . | . . . . Self-Inflicted Damage . | . . . . Shots . | . . . . Rammed . | . . . . Targets Rammed . | . . . . Kicked . | . . . . Crushed . | . . . . Highest Temperature 36 | . 11 19 36 Average Temperature 6 | . 3 6 20 Received Heat Transfer 441 | . 66 201 174 Siege Activations . | . . . . Martial Activations . | . . . . Shielding Activations . | . . . . Robots Disrupted . | . . . . Combat Hostiles . | . . . . Robots Corrupted . | . . . . Combat Hostiles . | . . . . Parts Fried . | . . . . Impact Corruptions . | . . . . Robots Melted . | . . . . Combat Hostiles . | . . . . Parts Melted . | . . . . Heat Transferred 610 | . . . 610 Parts Sabotaged . | . . . . Parts Stolen . | . . . . Parts Stripped . | . . . . Power Chain Reactions . | . . . . Alert | -11 -10 -10 -10 ------- Run | Yrd Mat Min Sub Maximum Alert Level . | . . . . Low Security (%) 100 | 100 100 100 . Level 1 . | . . . . Level 2 . | . . . . Level 3 . | . . . . Level 4 . | . . . . Level 5 . | . . . . High Security . | . . . . Max Security . | . . . . Peak Influence 65 | . 65 50 . Initial . | . . . . Average 9 | . 10 9 . Influence Increases 496 | . 201 180 115 Destroy 0b10 Robot/C 360 | . 140 120 100 Destroy 0b10 Robot/NC 25 | . 25 . . Destroy Leader 66 | . 36 30 . Lose Combat Pursuer 45 | . . 30 15 Influence Decreases 496 | . 201 180 115 Time Decay 481 | . 201 175 105 Lost Part 15 | . . 5 10 Squads Dispatched . | . . . . Investigation . | . . . . Extermination . | . . . . Reinforcement . | . . . . Assault . | . . . . Garrison . | . . . . Intercept . | . . . . Searches Triggered . | . . . . Construction Impeded . | . . . . Haulers Reinforced . | . . . . Active Scanning Responses . | . . . . Cargo Convoy Interrupts . | . . . . Stealth | -11 -10 -10 -10 --------- Run | Yrd Mat Min Sub Distress Signals 1 | . 1 . . Communications Jammed . | . . . . Distress Signals . | . . . . Times Spotted 41 | . 19 8 14 Peak Tracking Total 4 | . 4 2 3 Tactical Retreats 2 | . . 1 1 Traps | -11 -10 -10 -10 ------- Run | Yrd Mat Min Sub Traps Triggered 4 | . 1 . 3 Indirectly . | . . . . Trap Hack Attempts . | . . . . Triggered . | . . . . Disarmed . | . . . . Reprogrammed . | . . . . Reused . | . . . . Traps Extracted . | . . . . Installed . | . . . . Triggered . | . . . . Machines | -11 -10 -10 -10 ---------- Run | Yrd Mat Min Sub Machines Disabled . | . . . . Max in Single Turn . | . . . . Machines Repaired . | . . . . Machines Dismantled . | . . . . Machines Sabotaged . | . . . . Overloaded Fab Kills . | . . . . Hacking | -11 -10 -10 -10 --------- Run | Yrd Mat Min Sub Machines Accessed 1 | . . . 1 Terminals . | . . . . Fabricators . | . . . . Repair Stations . | . . . . Recycling Units . | . . . . Scanalyzers . | . . . . Garrison Access . | . . . . Total Hacks 5 | . . . 5 Successful 5 | . . . 5 Failed . | . . . . Catastrophic . | . . . . Database Lockouts . | . . . . Manual . | . . . . Terminals . | . . . . Fabricators . | . . . . Repair Stations . | . . . . Recycling Units . | . . . . Scanalyzers . | . . . . Garrison Access . | . . . . Terminal Hacks 5 | . . . 5 Record 5 | . . . 5 Fabricator Hacks . | . . . . Repair Station Hacks . | . . . . Recycling Unit Hacks . | . . . . Scanalyzer . | . . . . Garrison Access Hacks . | . . . . Unauthorized Hacks . | . . . . Terminals . | . . . . Fabricators . | . . . . Repair Stations . | . . . . Recycling Units . | . . . . Scanalyzers . | . . . . Garrison Access . | . . . . Data Cores Recovered . | . . . . Used . | . . . . Hacking Detections . | . . . . Full Trace Events . | . . . . Feedback Events . | . . . . Feedback Blocked . | . . . . Robot Schematics Acquired . | . . . . Robots Built . | . . . . Authchips . | . . . . Time . | . . . . Total Robot Build Rating . | . . . . Part Schematics Acquired . | . . . . Parts Built . | . . . . Authchips . | . . . . Time . | . . . . Total Part Build Rating . | . . . . Part Studies Acquired . | . . . . Parts Repaired . | . . . . Time . | . . . . Parts Recycled . | . . . . Recycled Matter . | . . . . Retrieved Matter . | . . . . Retrieved Components . | . . . . Parts Scanalyzed . | . . . . Part Schematics Acquired . | . . . . Parts Damaged . | . . . . Bothacking | -11 -10 -10 -10 ------------ Run | Yrd Mat Min Sub Used RIF Installer . | . . . . Robots Hacked . | . . . . Non-combat . | . . . . Combat . | . . . . Robot Hacks Applied . | . . . . Relay Couplers Released . | . . . . Fabnet Peak Effective % . | . . . . Robots Rewired . | . . . . Allies Hacked . | . . . . Hacks Repelled . | . . . . Allies | -11 -10 -10 -10 -------- Run | Yrd Mat Min Sub Total Allies . | . . . . Largest Group . | . . . . Highest-Rated Group . | . . . . Highest-Rated Ally . | . . . . Total Orders . | . . . . Ally Attacks . | . . . . Total Damage . | . . . . Kills . | . . . . Allies Corrupted . | . . . . Allies Melted . | . . . . Intel | -11 -10 -10 -10 ------- Run | Yrd Mat Min Sub Active Infowar (turns) 895 | 25 704 166 . Structural 895 | 25 704 166 . Robot Analysis Total . | . . . . Derelict Logs Recovered 1 | . . . 1 Drone Launches . | . . . . Drone Recoveries . | . . . . Exploration | -11 -10 -10 -10 ------------- Run | Yrd Mat Min Sub Turns Passed 3691 | 44 704 476 2467 Spaces Moved 2410 | 55 640 410 1305 Core 55 | 55 . . . Treads 1201 | . 140 . 1061 Legs . | . . . . Wheels . | . . . . Hover . | . . . . Flight 1154 | . 500 410 244 Fastest Speed 37 | 50 37 37 160 Average Speed 129 | 64 81 76 172 Slowest Speed 320 | 100 320 180 250 Overloaded Moves . | . . . . Propulsion Burnouts . | . . . . Robots Hopped 2 | . 1 1 . Potential Cave-ins . | . . . . Cave-ins Triggered . | . . . . Exploration Rate (%) 61 | 3 90 93 60 Regions Visited 3 Branch Regions 2 Pre-discovered Areas 1 | . . 1 . Known Exits Taken 3 | 1 1 1 . Unknown Exits Taken . | . . . . Scrap Searched 11 | . . . 11 Spaces Dug . | . . . . Terrain Destroyed . | . . . . Melee . | . . . . Projectile . | . . . . AOE . | . . . . Terrain Rammed . | . . . . Walls Destroyed . | . . . . Machines Disabled . | . . . . Actions | -11 -10 -10 -10 --------- Run | Yrd Mat Min Sub Total 2825 | 62 756 544 1463 Wait 206 | . 24 90 92 Move 2403 | 54 637 407 1305 Hop 2 | . 1 1 . Pick Up 21 | 5 10 . 6 Fast Attach 9 | 3 3 2 1 Attach 13 | . 10 1 2 Detach 9 | . 7 2 . Swap 2 | . . 1 1 Drop 16 | . 7 3 6 Fire 127 | . 57 37 33 Melee 17 | . . . 17 Ram . | . . . . Kick . | . . . . Crush . | . . . . Escape Stasis . | . . . . Rewire . | . . . . Trap . | . . . . Miscellaneous . | . . . . Route ------- -11/Scrapyard -10/Materials (discovered 3 exits: *Mat x2 / *Min) -10/Mines (discovered 3 exits: *Mat x2 / *Sub) -10/Subcaves (discovered 3 exits: *Mat x2 / *Rec) History --------- Turn | Location | Event 10 | -11/Scrapyard | Identified exit to Materials 10 | -11/Scrapyard | Discovered exit to Materials (range 16) 45 | -11/Scrapyard | Entered Materials 45 | -10/Materials | Evolved 1 slot: Utility x1 243 | -10/Materials | Identified exit to Materials 243 | -10/Materials | Discovered exit to Materials (range 10) 317 | -10/Materials | Build established: Hacker-Mutant 467 | -10/Materials | Discovered exit to Materials (range 8) 726 | -10/Materials | Identified exit to Mines 726 | -10/Materials | Discovered exit to Mines (range 15) 749 | -10/Materials | Entered Mines 814 | -10/Mines | Assembled infested the area 915 | -10/Mines | Found a Scrap Suit stashed away for nefarious purposes 916 | -10/Mines | Found Scrap Suit 933 | -10/Mines | Discovered exit to Materials (range 5) 984 | -10/Mines | Learned location of Storage (-7) 984 | -10/Mines | Discovered exit to Materials (range 11) 1038 | -10/Mines | Received a Rocket Launcher from a helpful Derelict 1213 | -10/Mines | Identified exit to Subcaves 1213 | -10/Mines | Discovered exit to Subcaves (range 7) 1219 | -10/Mines | Build established: Hacker-Scrapper 1225 | -10/Mines | Entered Subcaves 1226 | -10/Subcaves | Approached by a straggling Scientist 1318 | -10/Subcaves | Learned location of 1 exit from Materials 1607 | -10/Subcaves | Core integrity fell below 50% 1888 | -10/Subcaves | Shifting Twisted Machinery released Spk. Treads 1907 | -10/Subcaves | Identified exit to Materials 1907 | -10/Subcaves | Discovered exit to Materials (range 4) 1931 | -10/Subcaves | Shifting Twisted Machinery released Riot Gun 2119 | -10/Subcaves | Shifting Twisted Machinery released Sub. Monowheel 2122 | -10/Subcaves | Shifting Twisted Machinery released Battle Rifle 2527 | -10/Subcaves | Shifting Twisted Machinery released Sub. Laser 2700 | -10/Subcaves | Visited Clippyterm 2705 | -10/Subcaves | Learned Factory garrison access intel 2705 | -10/Subcaves | Learned Factory trap positions 3039 | -10/Subcaves | Identified exit to Recycling 3039 | -10/Subcaves | Discovered exit to Recycling (range 11) 3322 | -10/Subcaves | Discovered exit to Materials (range 6) 3372 | -10/Subcaves | Disturbed a concealed Subdweller 3384 | -10/Subcaves | Core integrity fell below 20% 3692 | -10/Subcaves | Destroyed by OT-KPY(R) with Subdweller Machine Gun Last Messages --------------- 03412_ Found 44 Matter. 03414_ Searching scrap... 03414_ Found Mak. Laser. 03414_ Found Sub. Laser. 03414_ Found 49 Matter. 03432_ Dropped Spread Laser. 03432_ Acquired Slug Cannon. 03442_ Acquired 10 matter. 03448_ Dropped Riot Gun. 03449_ Dropped Battle Rifle. 03449_ Acquired Scrap Shield. 03459_ Subatomizers dissect the Flamer. 03671_ Subatomizers dissect the Mak. Leg. 03681_ DX-MPS(R): "MADSUB!" 03682_ Subatomizers dissect the Mak. Leg. 03682_ DX-MPS(R) suffers critical hit (Destroy). 03686_ DX-MPS(R) knocked back. 03688_ OT-KPY(R) knocked back. 03690_ OT-KPY(R) suffers critical hit (Destroy). Map ----- +----------------------------------------------------+ | ?????????????????????????????????????????????????? | | ?????????????????????????????????????????????????? | | ?????????????????????????????????????????????????? | | ?????????????????????????????????????????????????? | | ?????????????????????????????????????????????????? | | ?????????????????????????????????????????????????? | | ?????????????????????????????????????????????????? | | ?????????????????????????????????????????????????? | | ?????????????????????????????????????????????????? | | ?????????????????????????????????????????????????? | | ?????????????????????????????????????????????????? | | ?????????????????????????????????????????????????? | | ?????????????????????????? ??????????????????????? | | ?????????????????????????? ??????????????????????? | | ??????????????????????? ??????????????????????? | | ??????????????????????"" "?????????????????????? | | ????????????????????" """ % ?????????????????????? | | ?????????????????????"" "" #?????????????????????? | | ????????????????????? "" ""#?????????????????????? | | ?????????????????????? "##????????????????????? | | ??????????????????????# ?????????????????????? | | ?????????????????????## ?????????????????????? | | ????????????????????## % R ??????????????????????? | | ????????????????????# RR ??????????????????????? | | ????##??????????????# #??????????????????????? | | ???## ##??????????????## @##??##?????????????????? | | ???# #?????????????# ## ##????????????????? | | ?# ##???????????## #????????????????? | | #?# % #???????????# = #????????????????? | | ### #??????????# # # # % ?????????? | | ##?????????### ###### % ????????? | | #####?????## [ ###? # ???????? | | ## ##????# #??###?? ????????? | | #?# % ##??## #?????????????????? | | % ### #### ##????????????????? | | ## #????????????????? | | ### ## #???????????????? | | ## ## % ##?###?###???????????????? | | ### ##### ## #???????????????????????? | | ### ##???###### #???????????????????????? | | ## ##?????????#### #??????????????????????? | | #?????????????## #?????????????????????? | | ##??????????????? #?????????????????????? | | # #???????????????? ????????????????????? | | # ###????????????????## #???????????????????? | | #???????????????????? ##???????????????????? | | #???????????????????? #????????????????????? | | ##???????????????????? #????????????????????? | | ##?????????????????????? ????????????????????? | | #??????????????????????? ???????????????????? | +----------------------------------------------------+ Best States ------------- Heat Dissipation 25 Energy Generation 14 Energy Capacity 250 Matter Stores 300 Matter Capacity 300 Sight Range 16 Terrain Scan Density 10 Armor Coverage 150 Resistance: KI 35 Resistance: TH 35 Resistance: EX 35 Resistance: EM 35 Resistance: I 35 Resistance: S 35 Resistance: P 35 Evasion (%) 62 Recoil Reduction 2 Offensive Hacking 20 Item Schematics ----------------- None Robot Schematics ------------------ None Fabricated ------------ Nothing Repaired ---------- Nothing Studied --------- None Alien Tech Used ----------------- None Achievements -------------- None Challenges ------------ None Game ------ Seed WardroneFlakMinigun Manual? 0 Play Time 00:17:03 Cumulative 148.0 hours Start 2025.11.27 @ 14:29:25 End 2025.11.27 @ 14:50:59 Sessions 1 Manual Loads 0 Difficulty Explorer Special Mode None Game No. 182 Rogue 0 Adventurer 0 Explorer 182 Win Type - Total 0 Types 0/0/0/0/0/0/0/0/0/0 Lore% 69 Gallery% 66 Achievement% 52 Wizard Run 0 Options --------- Layout 1 ASCII 0 Keyboard 0 Movement Mouse Keybinds 0 Fullscreen 1 Font 24/Smallcaps Map View 50x35 Zoom Use 0% Tactical HUD 1 Map Filters NONE Filters NONE Steam 1 RUN: e4d68aa4-c283-4fec-996c-1ccda9c9a316